[Event "Late-Titled-Tuesday-Blitz-December-26-2023"]
[Site "Chess.com"]
[Date "2023.12.26"]
[Round "5"]
[White "Kaua18"]
[Black "Maitreia"]
[Result "1/2-1/2"]
[WhiteElo "2545"]
[BlackElo "2720"]
[TimeControl "180+1"]
[EndTime "14:59:23 PST"]
[Termination "Game drawn - insufficient material"]

1. e4 {[%clk 0:02:56.2]} 1... c5 {[%clk 0:03:00]} 2. Nf3 {[%clk 0:02:51.6]} 2...
g6 {[%clk 0:03:00.3]} 3. d4 {[%clk 0:02:44.4]} 3... cxd4 {[%clk 0:03:01.2]} 4.
Nxd4 {[%clk 0:02:43.8]} 4... Bg7 {[%clk 0:03:01.4]} 5. c4 {[%clk 0:02:44.2]}
5... Nc6 {[%clk 0:03:01.6]} 6. Be3 {[%clk 0:02:44.4]} 6... Qb6 {[%clk
0:03:02.2]} 7. Nb3 {[%clk 0:02:44.1]} 7... Qd8 {[%clk 0:03:02.6]} 8. Nc3 {[%clk
0:02:44.1]} 8... Bxc3+ {[%clk 0:03:02.5]} 9. bxc3 {[%clk 0:02:44.6]} 9... Nf6
{[%clk 0:03:03.4]} 10. Bd3 {[%clk 0:02:39.3]} 10... O-O {[%clk 0:03:03.2]} 11.
O-O {[%clk 0:02:39.3]} 11... b6 {[%clk 0:03:03.8]} 12. Rb1 {[%clk 0:02:30.1]}
12... d6 {[%clk 0:03:03.9]} 13. Kh1 {[%clk 0:02:28.3]} 13... Ba6 {[%clk
0:02:37.6]} 14. Nd4 {[%clk 0:02:03.9]} 14... Ne5 {[%clk 0:02:33.1]} 15. Nb5
{[%clk 0:02:04]} 15... Qd7 {[%clk 0:02:06.6]} 16. f4 {[%clk 0:01:59.6]} 16...
Nxd3 {[%clk 0:02:04.4]} 17. Qxd3 {[%clk 0:02:00.5]} 17... Bb7 {[%clk 0:01:59.9]}
18. Rbe1 {[%clk 0:01:48.8]} 18... Bxe4 {[%clk 0:01:56.5]} 19. Qe2 {[%clk
0:01:48.5]} 19... Qb7 {[%clk 0:01:51.9]} 20. Bd4 {[%clk 0:01:47.8]} 20... d5
{[%clk 0:01:02]} 21. Bxf6 {[%clk 0:01:41.9]} 21... exf6 {[%clk 0:00:59.3]} 22.
Nd6 {[%clk 0:01:42.4]} 22... Qc6 {[%clk 0:00:55.4]} 23. Nxe4 {[%clk 0:01:41.7]}
23... dxe4 {[%clk 0:00:56.3]} 24. Qxe4 {[%clk 0:01:41.8]} 24... Rac8 {[%clk
0:00:54.5]} 25. Qe7 {[%clk 0:01:30.4]} 25... Rc7 {[%clk 0:00:48.6]} 26. Qe3
{[%clk 0:01:21.4]} 26... Qxc4 {[%clk 0:00:47.4]} 27. f5 {[%clk 0:01:22]} 27...
g5 {[%clk 0:00:38.7]} 28. Rf3 {[%clk 0:01:20.8]} 28... Rfc8 {[%clk 0:00:34.3]}
29. Qe2 {[%clk 0:01:00.9]} 29... Qxe2 {[%clk 0:00:33.3]} 30. Rxe2 {[%clk
0:01:01.8]} 30... Rxc3 {[%clk 0:00:33.2]} 31. Rxc3 {[%clk 0:00:55.2]} 31... Rxc3
{[%clk 0:00:34.1]} 32. h4 {[%clk 0:00:55.4]} 32... Kg7 {[%clk 0:00:26.7]} 33.
Kh2 {[%clk 0:00:48.9]} 33... Rc5 {[%clk 0:00:25.3]} 34. Rf2 {[%clk 0:00:45.8]}
34... Ra5 {[%clk 0:00:21.6]} 35. g4 {[%clk 0:00:35.5]} 35... Ra3 {[%clk
0:00:18.2]} 36. Re2 {[%clk 0:00:35.5]} 36... b5 {[%clk 0:00:16.6]} 37. h5 {[%clk
0:00:35.4]} 37... b4 {[%clk 0:00:15.4]} 38. Kg2 {[%clk 0:00:35.4]} 38... a5
{[%clk 0:00:15.6]} 39. Rd2 {[%clk 0:00:30.9]} 39... a4 {[%clk 0:00:15.4]} 40.
Kf2 {[%clk 0:00:24.8]} 40... Rh3 {[%clk 0:00:13.6]} 41. Kg2 {[%clk 0:00:24.7]}
41... Rc3 {[%clk 0:00:14.1]} 42. Rd4 {[%clk 0:00:21.1]} 42... b3 {[%clk
0:00:09.6]} 43. Rxa4 {[%clk 0:00:11.2]} 43... Rc2+ {[%clk 0:00:09.1]} 44. Kg3
{[%clk 0:00:11.7]} 44... bxa2 {[%clk 0:00:06.7]} 45. Ra8 {[%clk 0:00:11.1]}
45... Rb2 {[%clk 0:00:07]} 46. Kh3 {[%clk 0:00:11.2]} 46... Rb3+ {[%clk
0:00:07.1]} 47. Kg2 {[%clk 0:00:11.5]} 47... Rb2+ {[%clk 0:00:08]} 48. Kg3
{[%clk 0:00:11.9]} 48... Rd2 {[%clk 0:00:08.3]} 49. Kf3 {[%clk 0:00:12.1]} 49...
h6 {[%clk 0:00:07.7]} 50. Kg3 {[%clk 0:00:12.4]} 50... Rd3+ {[%clk 0:00:06.6]}
51. Kg2 {[%clk 0:00:12.3]} 51... Rd2+ {[%clk 0:00:07.5]} 52. Kg3 {[%clk
0:00:12.7]} 52... Rd3+ {[%clk 0:00:05]} 53. Kg2 {[%clk 0:00:12.4]} 53... Rd8
{[%clk 0:00:05.7]} 54. Rxa2 {[%clk 0:00:11.5]} 54... Kf8 {[%clk 0:00:06.2]} 55.
Ra7 {[%clk 0:00:11]} 55... Rd3 {[%clk 0:00:05.8]} 56. Kf2 {[%clk 0:00:11.3]}
56... Rd6 {[%clk 0:00:01.9]} 57. Kg2 {[%clk 0:00:11.2]} 57... Kg7 {[%clk
0:00:02]} 58. Kf3 {[%clk 0:00:11.7]} 58... Rd4 {[%clk 0:00:02.4]} 59. Rb7 {[%clk
0:00:11.7]} 59... Rf4+ {[%clk 0:00:03.3]} 60. Kg3 {[%clk 0:00:11.8]} 60... Rc4
{[%clk 0:00:03.6]} 61. Ra7 {[%clk 0:00:12.3]} 61... Rc3+ {[%clk 0:00:04.1]} 62.
Kf2 {[%clk 0:00:12.8]} 62... Kf8 {[%clk 0:00:04.5]} 63. Ra8+ {[%clk 0:00:12.6]}
63... Kg7 {[%clk 0:00:05.1]} 64. Ra7 {[%clk 0:00:12.9]} 64... Rc4 {[%clk
0:00:05.7]} 65. Kf3 {[%clk 0:00:13.4]} 65... Rb4 {[%clk 0:00:06.3]} 66. Kg3
{[%clk 0:00:13.9]} 66... Rb3+ {[%clk 0:00:06.6]} 67. Kf2 {[%clk 0:00:14.2]}
67... Rd3 {[%clk 0:00:07.5]} 68. Ra6 {[%clk 0:00:13.7]} 68... Rd4 {[%clk
0:00:06.8]} 69. Kf3 {[%clk 0:00:14.2]} 69... Rf4+ {[%clk 0:00:07.3]} 70. Kg3
{[%clk 0:00:14.7]} 70... Rb4 {[%clk 0:00:07.6]} 71. Rc6 {[%clk 0:00:14.8]} 71...
Rb3+ {[%clk 0:00:07.7]} 72. Kg2 {[%clk 0:00:14.8]} 72... Kf8 {[%clk 0:00:08.6]}
73. Rxf6 {[%clk 0:00:14]} 73... Kg7 {[%clk 0:00:09.1]} 74. Rc6 {[%clk
0:00:14.2]} 74... Rb2+ {[%clk 0:00:09.2]} 75. Kf3 {[%clk 0:00:14.4]} 75... Rb3+
{[%clk 0:00:10.1]} 76. Kf2 {[%clk 0:00:13.8]} 76... Rb2+ {[%clk 0:00:10.3]} 77.
Ke3 {[%clk 0:00:13.2]} 77... Rb3+ {[%clk 0:00:10.9]} 78. Ke4 {[%clk 0:00:10.9]}
78... Rg3 {[%clk 0:00:10.4]} 79. f6+ {[%clk 0:00:09.5]} 79... Kh7 {[%clk
0:00:10.9]} 80. Kf5 {[%clk 0:00:06.9]} 80... Rf3+ {[%clk 0:00:11.4]} 81. Ke5
{[%clk 0:00:07.5]} 81... Re3+ {[%clk 0:00:10.1]} 82. Kf5 {[%clk 0:00:06.3]}
82... Rf3+ {[%clk 0:00:09.7]} 83. Ke5 {[%clk 0:00:06.5]} 83... Re3+ {[%clk
0:00:08.4]} 84. Kd6 {[%clk 0:00:05.7]} 84... Re4 {[%clk 0:00:05.3]} 85. Rc7
{[%clk 0:00:03.3]} 85... Re6+ {[%clk 0:00:05.6]} 86. Kd5 {[%clk 0:00:02.8]}
86... Rxf6 {[%clk 0:00:06.5]} 87. Ke5 {[%clk 0:00:03.4]} 87... Kg7 {[%clk
0:00:06.1]} 88. Rc4 {[%clk 0:00:03.1]} 88... Re6+ {[%clk 0:00:05.7]} 89. Kf5
{[%clk 0:00:03.2]} 89... Re7 {[%clk 0:00:05.5]} 90. Rb4 {[%clk 0:00:03.5]} 90...
Re1 {[%clk 0:00:05.3]} 91. Ra4 {[%clk 0:00:03.7]} 91... Rf1+ {[%clk 0:00:05.9]}
92. Ke5 {[%clk 0:00:04.3]} 92... Rf2 {[%clk 0:00:06]} 93. Rb4 {[%clk 0:00:04.1]}
93... Rf1 {[%clk 0:00:05.7]} 94. Ra4 {[%clk 0:00:04.4]} 94... Rf2 {[%clk
0:00:05.6]} 95. Rb4 {[%clk 0:00:05]} 95... Re2+ {[%clk 0:00:06.2]} 96. Kf5
{[%clk 0:00:05.3]} 96... Re6 {[%clk 0:00:07.1]} 97. Ra4 {[%clk 0:00:05.4]} 97...
Rc6 {[%clk 0:00:07.6]} 98. Rb4 {[%clk 0:00:05.7]} 98... Rc5+ {[%clk 0:00:08.1]}
99. Ke4 {[%clk 0:00:05.3]} 99... Kf6 {[%clk 0:00:09]} 100. Kf3 {[%clk
0:00:05.6]} 100... Rc6 {[%clk 0:00:09]} 101. Rb3 {[%clk 0:00:05.7]} 101... Re6
{[%clk 0:00:09.2]} 102. Kg3 {[%clk 0:00:06.2]} 102... Re5 {[%clk 0:00:09.1]}
103. Rf3+ {[%clk 0:00:06.8]} 103... Ke6 {[%clk 0:00:09.7]} 104. Ra3 {[%clk
0:00:07.4]} 104... Rd5 {[%clk 0:00:09.6]} 105. Ra6+ {[%clk 0:00:07.1]} 105...
Rd6 {[%clk 0:00:10.2]} 106. Ra3 {[%clk 0:00:07.9]} 106... f6 {[%clk 0:00:10.3]}
107. Re3+ {[%clk 0:00:08.4]} 107... Kf7 {[%clk 0:00:10.7]} 108. Ra3 {[%clk
0:00:09.1]} 108... Rd7 {[%clk 0:00:10.8]} 109. Rb3 {[%clk 0:00:08.9]} 109... f5
{[%clk 0:00:10.5]} 110. gxf5 {[%clk 0:00:08.5]} 110... Rd6 {[%clk 0:00:10.8]}
111. Kg4 {[%clk 0:00:07.6]} 111... Kf6 {[%clk 0:00:10.9]} 112. Rb4 {[%clk
0:00:07.3]} 112... Rc6 {[%clk 0:00:11.1]} 113. Ra4 {[%clk 0:00:07.8]} 113... Rb6
{[%clk 0:00:10.9]} 114. Rc4 {[%clk 0:00:08.1]} 114... Ke5 {[%clk 0:00:10.7]}
115. Ra4 {[%clk 0:00:05.1]} 115... Rd6 {[%clk 0:00:11]} 116. Rb4 {[%clk
0:00:04.6]} 116... Rc6 {[%clk 0:00:10.7]} 117. Ra4 {[%clk 0:00:04.9]} 117... Rb6
{[%clk 0:00:10]} 118. Rc4 {[%clk 0:00:05.2]} 118... Kd5 {[%clk 0:00:10.4]} 119.
Ra4 {[%clk 0:00:05.3]} 119... Ke5 {[%clk 0:00:09.1]} 120. Rc4 {[%clk 0:00:05.5]}
120... Rb1 {[%clk 0:00:09.2]} 121. Rc5+ {[%clk 0:00:04.9]} 121... Kd6 {[%clk
0:00:09.2]} 122. Ra5 {[%clk 0:00:04]} 122... Rb4+ {[%clk 0:00:08.7]} 123. Kg3
{[%clk 0:00:03.7]} 123... Rf4 {[%clk 0:00:08.9]} 124. Ra6+ {[%clk 0:00:04.1]}
124... Ke5 {[%clk 0:00:09.5]} 125. Rxh6 {[%clk 0:00:04.8]} 125... Kxf5 {[%clk
0:00:10]} 126. Ra6 {[%clk 0:00:04.9]} 126... Rg4+ {[%clk 0:00:09.9]} 127. Kf3
{[%clk 0:00:04.6]} 127... Rh4 {[%clk 0:00:10.8]} 128. h6 {[%clk 0:00:04.3]}
128... Rh3+ {[%clk 0:00:10.5]} 129. Kg2 {[%clk 0:00:04.9]} 129... g4 {[%clk
0:00:10.9]} 130. Ra5+ {[%clk 0:00:03.7]} 130... Kf4 {[%clk 0:00:11.4]} 131. Ra4+
{[%clk 0:00:04.3]} 131... Kg5 {[%clk 0:00:11.9]} 132. Ra5+ {[%clk 0:00:04.1]}
132... Kxh6 {[%clk 0:00:12.3]} 133. Ra6+ {[%clk 0:00:04.6]} 133... Kg5 {[%clk
0:00:12.8]} 134. Ra5+ {[%clk 0:00:05.2]} 134... Kh4 {[%clk 0:00:13.5]} 135. Ra8
{[%clk 0:00:05.2]} 135... Rc3 {[%clk 0:00:13.9]} 136. Rh8+ {[%clk 0:00:05.3]}
136... Kg5 {[%clk 0:00:14.5]} 137. Rg8+ {[%clk 0:00:06]} 137... Kf5 {[%clk
0:00:15.1]} 138. Rf8+ {[%clk 0:00:06.5]} 138... Ke5 {[%clk 0:00:15.5]} 139. Re8+
{[%clk 0:00:06.8]} 139... Kf6 {[%clk 0:00:15.9]} 140. Rf8+ {[%clk 0:00:07.2]}
140... Kg6 {[%clk 0:00:15.6]} 141. Rg8+ {[%clk 0:00:07.6]} 141... Kh5 {[%clk
0:00:15.8]} 142. Rh8+ {[%clk 0:00:08.2]} 142... Kg5 {[%clk 0:00:16.2]} 143. Rg8+
{[%clk 0:00:08.8]} 143... Kf5 {[%clk 0:00:15.3]} 144. Rf8+ {[%clk 0:00:09.3]}
144... Ke6 {[%clk 0:00:15.9]} 145. Rg8 {[%clk 0:00:09.7]} 145... Rc4 {[%clk
0:00:15.4]} 146. Kg3 {[%clk 0:00:10]} 146... Kf5 {[%clk 0:00:16]} 147. Rf8+
{[%clk 0:00:09.9]} 147... Kg5 {[%clk 0:00:16.5]} 148. Rg8+ {[%clk 0:00:10.5]}
148... Kh5 {[%clk 0:00:17.1]} 149. Rh8+ {[%clk 0:00:11.1]} 149... Kg6 {[%clk
0:00:17.7]} 150. Rg8+ {[%clk 0:00:11.7]} 150... Kf5 {[%clk 0:00:17.7]} 151. Rf8+
{[%clk 0:00:12.1]} 151... Ke5 {[%clk 0:00:18.3]} 152. Re8+ {[%clk 0:00:11.5]}
152... Kf6 {[%clk 0:00:18.3]} 153. Rf8+ {[%clk 0:00:12]} 153... Kg7 {[%clk
0:00:18.4]} 154. Rf4 {[%clk 0:00:12.2]} 154... Rxf4 {[%clk 0:00:16.8]} 155. Kxf4
{[%clk 0:00:13.1]} 155... Kg6 {[%clk 0:00:17.6]} 156. Kxg4 {[%clk 0:00:13.4]}
1/2-1/2

[Event "Late-Titled-Tuesday-Blitz-December-26-2023"]
[Site "Chess.com"]
[Date "2023.12.26"]
[Round "6"]
[White "vugarrasulov"]
[Black "DanielNaroditsky"]
[Result "1/2-1/2"]
[WhiteElo "2929"]
[BlackElo "3107"]
[TimeControl "180+1"]
[EndTime "15:00:59 PST"]
[Termination "Game drawn by agreement"]

1. e4 {[%clk 0:03:00.9]} 1... Nc6 {[%clk 0:02:53.9]} 2. Nf3 {[%clk 0:03:00.1]}
2... d6 {[%clk 0:02:53.1]} 3. d4 {[%clk 0:02:59.6]} 3... Nf6 {[%clk 0:02:53.9]}
4. Nc3 {[%clk 0:02:57.5]} 4... g6 {[%clk 0:02:53.8]} 5. h3 {[%clk 0:02:54.1]}
5... Bg7 {[%clk 0:02:53.9]} 6. Be2 {[%clk 0:02:54.6]} 6... O-O {[%clk
0:02:54.1]} 7. O-O {[%clk 0:02:55]} 7... e5 {[%clk 0:02:54.2]} 8. dxe5 {[%clk
0:02:54.3]} 8... Nxe5 {[%clk 0:02:53.6]} 9. Nxe5 {[%clk 0:02:53.5]} 9... dxe5
{[%clk 0:02:54.5]} 10. Be3 {[%clk 0:02:52]} 10... Qe7 {[%clk 0:02:50.7]} 11. Nd5
{[%clk 0:02:49.5]} 11... Nxd5 {[%clk 0:02:50.7]} 12. Qxd5 {[%clk 0:02:50]} 12...
Rd8 {[%clk 0:02:41.1]} 13. Qb3 {[%clk 0:02:48]} 1/2-1/2

[Event "Late-Titled-Tuesday-Blitz-December-26-2023"]
[Site "Chess.com"]
[Date "2023.12.26"]
[Round "6"]
[White "IngOscarArdila"]
[Black "marvinguevara"]
[Result "1-0"]
[WhiteElo "2325"]
[BlackElo "2229"]
[TimeControl "180+1"]
[EndTime "15:02:19 PST"]
[Termination "IngOscarArdila won by checkmate"]

1. d4 {[%clk 0:03:00.2]} 1... Nf6 {[%clk 0:02:58.9]} 2. c4 {[%clk 0:02:59.7]}
2... e6 {[%clk 0:02:58.4]} 3. Nc3 {[%clk 0:02:59.8]} 3... d5 {[%clk 0:02:57.3]}
4. Bg5 {[%clk 0:02:59.1]} 4... Be7 {[%clk 0:02:56.7]} 5. e3 {[%clk 0:02:59.5]}
5... O-O {[%clk 0:02:56]} 6. Qc2 {[%clk 0:02:59.8]} 6... b6 {[%clk 0:02:53.4]}
7. cxd5 {[%clk 0:02:58.5]} 7... exd5 {[%clk 0:02:53]} 8. Nf3 {[%clk 0:02:58]}
8... Bb7 {[%clk 0:02:52.4]} 9. Bd3 {[%clk 0:02:57.9]} 9... Nbd7 {[%clk
0:02:50.7]} 10. O-O {[%clk 0:02:57.6]} 10... c5 {[%clk 0:02:49.4]} 11. a4 {[%clk
0:02:53]} 11... Ne4 {[%clk 0:02:44.9]} 12. Bxe7 {[%clk 0:02:50.8]} 12... Qxe7
{[%clk 0:02:45.8]} 13. dxc5 {[%clk 0:02:45.3]} 13... Ndxc5 {[%clk 0:02:44.8]}
14. Bxe4 {[%clk 0:02:43.4]} 14... Nxe4 {[%clk 0:02:43.6]} 15. Nxe4 {[%clk
0:02:42.2]} 15... dxe4 {[%clk 0:02:43.4]} 16. Nd4 {[%clk 0:02:42.5]} 16... Rac8
{[%clk 0:02:43.1]} 17. Qd2 {[%clk 0:02:39.3]} 17... Rfd8 {[%clk 0:02:42.4]} 18.
a5 {[%clk 0:02:39.7]} 18... bxa5 {[%clk 0:02:38.9]} 19. Rxa5 {[%clk 0:02:36.4]}
19... Bd5 {[%clk 0:02:36.4]} 20. Rfa1 {[%clk 0:02:34.6]} 20... Rc7 {[%clk
0:02:34.7]} 21. h3 {[%clk 0:02:30.4]} 21... Bc4 {[%clk 0:02:31.7]} 22. b3 {[%clk
0:02:15.4]} 22... Bxb3 {[%clk 0:02:30.1]} 23. Qb2 {[%clk 0:02:08]} 23... Bc4
{[%clk 0:02:26.3]} 24. Nf5 {[%clk 0:02:03]} 24... Qd7 {[%clk 0:02:23]} 25. Qxg7#
{[%clk 0:02:01.7]} 1-0

[Event "Late-Titled-Tuesday-Blitz-December-26-2023"]
[Site "Chess.com"]
[Date "2023.12.26"]
[Round "6"]
[White "Mikayel99"]
[Black "Rafael_Ventura"]
[Result "1-0"]
[WhiteElo "2583"]
[BlackElo "2381"]
[TimeControl "180+1"]
[EndTime "15:02:37 PST"]
[Termination "Mikayel99 won by checkmate"]

1. e4 {[%clk 0:03:00.9]} 1... c5 {[%clk 0:02:58.5]} 2. c3 {[%clk 0:03:00.8]}
2... Nf6 {[%clk 0:02:58.4]} 3. e5 {[%clk 0:03:00.9]} 3... Nd5 {[%clk 0:02:58.3]}
4. Nf3 {[%clk 0:03:01.8]} 4... Nc6 {[%clk 0:02:58.3]} 5. Bc4 {[%clk 0:03:01.8]}
5... Nb6 {[%clk 0:02:58.9]} 6. Bb3 {[%clk 0:03:02.2]} 6... c4 {[%clk 0:02:59.7]}
7. Bc2 {[%clk 0:03:02.8]} 7... d6 {[%clk 0:03:00.5]} 8. exd6 {[%clk 0:03:03.1]}
8... Qxd6 {[%clk 0:03:01.4]} 9. d3 {[%clk 0:03:01.6]} 9... cxd3 {[%clk
0:02:42.9]} 10. Qxd3 {[%clk 0:03:01.7]} 10... Qxd3 {[%clk 0:02:43.1]} 11. Bxd3
{[%clk 0:03:02.6]} 11... Bg4 {[%clk 0:02:39.5]} 12. Be2 {[%clk 0:03:02.8]} 12...
f6 {[%clk 0:02:33.3]} 13. h3 {[%clk 0:02:59.8]} 13... Bh5 {[%clk 0:02:31.6]} 14.
Na3 {[%clk 0:02:51]} 14... a6 {[%clk 0:02:25.3]} 15. Bd2 {[%clk 0:02:33.8]}
15... e5 {[%clk 0:02:24.2]} 16. Nxe5 {[%clk 0:02:22.6]} 16... Bxe2 {[%clk
0:02:22.1]} 17. Nxc6 {[%clk 0:02:22.9]} 17... Bd3 {[%clk 0:02:20.1]} 18. Nd4
{[%clk 0:02:19.6]} 18... Bxa3 {[%clk 0:02:19.3]} 19. bxa3 {[%clk 0:02:19.8]}
19... Nc4 {[%clk 0:02:19.9]} 20. O-O-O {[%clk 0:02:18.7]} 20... O-O-O {[%clk
0:02:14.3]} 21. Bf4 {[%clk 0:02:07]} 21... Be4 {[%clk 0:02:09.8]} 22. Rhe1
{[%clk 0:02:00.7]} 22... Bxg2 {[%clk 0:02:08.2]} 23. Nf5 {[%clk 0:01:59.8]}
23... Rxd1+ {[%clk 0:02:06.1]} 24. Rxd1 {[%clk 0:02:00.7]} 24... Bxh3 {[%clk
0:02:02.6]} 25. Ne7# {[%clk 0:01:59.8]} 1-0

[Event "Late-Titled-Tuesday-Blitz-December-26-2023"]
[Site "Chess.com"]
[Date "2023.12.26"]
[Round "6"]
[White "giomar27"]
[Black "AlexNovitz"]
[Result "1-0"]
[WhiteElo "2393"]
[BlackElo "2196"]
[TimeControl "180+1"]
[EndTime "15:03:34 PST"]
[Termination "giomar27 won by resignation"]

1. b3 {[%clk 0:03:00.9]} 1... e5 {[%clk 0:02:58.3]} 2. Bb2 {[%clk 0:03:01]} 2...
Nc6 {[%clk 0:02:56.4]} 3. e3 {[%clk 0:03:00.8]} 3... Nf6 {[%clk 0:02:56.4]} 4.
h3 {[%clk 0:03:00.8]} 4... d5 {[%clk 0:02:55.4]} 5. Bb5 {[%clk 0:03:00.6]} 5...
Bd6 {[%clk 0:02:54.7]} 6. Nf3 {[%clk 0:03:00.6]} 6... Qe7 {[%clk 0:02:54.9]} 7.
d4 {[%clk 0:03:00]} 7... e4 {[%clk 0:02:52.7]} 8. Ne5 {[%clk 0:03:00.2]} 8...
Bd7 {[%clk 0:02:52.2]} 9. Nxd7 {[%clk 0:02:56]} 9... Qxd7 {[%clk 0:02:53.1]} 10.
c4 {[%clk 0:02:52.4]} 10... a6 {[%clk 0:02:51.8]} 11. Bxc6 {[%clk 0:02:51.5]}
11... bxc6 {[%clk 0:02:51.1]} 12. O-O {[%clk 0:02:47.7]} 12... O-O {[%clk
0:02:50]} 13. Ba3 {[%clk 0:02:46.9]} 13... dxc4 {[%clk 0:02:43.3]} 14. bxc4
{[%clk 0:02:44.5]} 14... Rab8 {[%clk 0:02:42]} 15. Qa4 {[%clk 0:02:40.2]} 15...
c5 {[%clk 0:02:30.3]} 16. Qxd7 {[%clk 0:02:36]} 16... Nxd7 {[%clk 0:02:31.2]}
17. Nc3 {[%clk 0:02:24.2]} 17... cxd4 {[%clk 0:02:10.1]} 18. Bxd6 {[%clk
0:02:23.4]} 18... cxd6 {[%clk 0:02:10.8]} 19. exd4 {[%clk 0:02:23.2]} 19... Rfc8
{[%clk 0:02:05.8]} 20. Nxe4 {[%clk 0:02:19.4]} 20... Rxc4 {[%clk 0:02:04.6]} 21.
Rfd1 {[%clk 0:02:19.3]} 21... Rb6 {[%clk 0:01:57.9]} 22. Rac1 {[%clk 0:02:17.1]}
22... d5 {[%clk 0:01:43]} 23. Nc3 {[%clk 0:02:01.6]} 23... Nf6 {[%clk
0:01:39.2]} 24. Nxd5 {[%clk 0:01:57.6]} 24... Rxc1 {[%clk 0:01:34]} 25. Rxc1
{[%clk 0:01:50.4]} 25... h6 {[%clk 0:01:25]} 26. Nxb6 {[%clk 0:01:49.2]} 1-0

[Event "Late-Titled-Tuesday-Blitz-December-26-2023"]
[Site "Chess.com"]
[Date "2023.12.26"]
[Round "6"]
[White "DmitryMaximov"]
[Black "FrenchHarvey"]
[Result "0-1"]
[WhiteElo "2748"]
[BlackElo "2639"]
[TimeControl "180+1"]
[EndTime "15:03:46 PST"]
[Termination "FrenchHarvey won by resignation"]

1. e4 {[%clk 0:03:00.9]} 1... c5 {[%clk 0:02:58.9]} 2. Nf3 {[%clk 0:03:01.2]}
2... Nc6 {[%clk 0:02:59.5]} 3. Bb5 {[%clk 0:03:01.3]} 3... d6 {[%clk 0:02:59.3]}
4. O-O {[%clk 0:03:01]} 4... Bd7 {[%clk 0:02:57.6]} 5. Re1 {[%clk 0:03:01.3]}
5... Nf6 {[%clk 0:02:54.9]} 6. h3 {[%clk 0:03:01.1]} 6... Rg8 {[%clk 0:02:54.5]}
7. h4 {[%clk 0:02:45.3]} 7... a6 {[%clk 0:02:52.3]} 8. Bxc6 {[%clk 0:02:41.5]}
8... Bxc6 {[%clk 0:02:49.1]} 9. Nc3 {[%clk 0:02:41.4]} 9... e5 {[%clk
0:02:48.3]} 10. d3 {[%clk 0:02:39.1]} 10... h6 {[%clk 0:02:48]} 11. Nd2 {[%clk
0:02:29.1]} 11... g5 {[%clk 0:02:46.1]} 12. hxg5 {[%clk 0:02:24.2]} 12... hxg5
{[%clk 0:02:47]} 13. Nf1 {[%clk 0:02:23.5]} 13... Qd7 {[%clk 0:02:39.3]} 14. Ng3
{[%clk 0:02:22.5]} 14... O-O-O {[%clk 0:02:37]} 15. a3 {[%clk 0:02:21.7]} 15...
g4 {[%clk 0:02:30]} 16. b4 {[%clk 0:02:21.5]} 16... d5 {[%clk 0:02:27.6]} 17.
exd5 {[%clk 0:02:13.3]} 17... Nxd5 {[%clk 0:02:26.4]} 18. Nce4 {[%clk
0:02:09.5]} 18... f5 {[%clk 0:02:24.1]} 19. Nxc5 {[%clk 0:02:04]} 19... Bxc5
{[%clk 0:02:23.7]} 20. bxc5 {[%clk 0:02:04.3]} 20... Nc3 {[%clk 0:02:18.1]} 21.
Qd2 {[%clk 0:02:00.6]} 21... Qd5 {[%clk 0:02:18.4]} 22. f3 {[%clk 0:01:35.4]}
22... gxf3 {[%clk 0:02:17.1]} 23. Qf2 {[%clk 0:01:35.6]} 23... Rxg3 {[%clk
0:02:14.3]} 24. Qxg3 {[%clk 0:01:35.5]} 24... Rg8 {[%clk 0:02:11.5]} 25. Bg5
{[%clk 0:01:34.7]} 25... Ne2+ {[%clk 0:02:05.5]} 26. Rxe2 {[%clk 0:01:34.5]}
26... fxe2 {[%clk 0:02:06.4]} 27. Re1 {[%clk 0:01:28.6]} 27... Qxc5+ {[%clk
0:02:04.5]} 28. Kh2 {[%clk 0:01:09.9]} 28... Rh8+ {[%clk 0:02:04.4]} 29. Bh4
{[%clk 0:01:10.3]} 29... Qd4 {[%clk 0:02:04.9]} 0-1

[Event "Late-Titled-Tuesday-Blitz-December-26-2023"]
[Site "Chess.com"]
[Date "2023.12.26"]
[Round "6"]
[White "Zadar321"]
[Black "TST2014"]
[Result "0-1"]
[WhiteElo "2414"]
[BlackElo "2574"]
[TimeControl "180+1"]
[EndTime "15:03:48 PST"]
[Termination "TST2014 won by resignation"]

1. e4 {[%clk 0:03:00]} 1... c5 {[%clk 0:02:59.1]} 2. Nf3 {[%clk 0:02:59.9]} 2...
Nc6 {[%clk 0:02:59]} 3. Bb5 {[%clk 0:02:59.5]} 3... g6 {[%clk 0:02:58.5]} 4.
Bxc6 {[%clk 0:02:59.3]} 4... dxc6 {[%clk 0:02:57.9]} 5. d3 {[%clk 0:03:00.2]}
5... Bg7 {[%clk 0:02:57.9]} 6. h3 {[%clk 0:03:01.1]} 6... Nf6 {[%clk 0:02:57.9]}
7. O-O {[%clk 0:03:01.3]} 7... Nd7 {[%clk 0:02:56.5]} 8. Nc3 {[%clk 0:03:01.4]}
8... e5 {[%clk 0:02:56.3]} 9. Be3 {[%clk 0:03:01.5]} 9... b6 {[%clk 0:02:56.3]}
10. Qd2 {[%clk 0:03:01.9]} 10... h6 {[%clk 0:02:55.4]} 11. Nh2 {[%clk
0:03:02.2]} 11... Nf8 {[%clk 0:02:55.1]} 12. f4 {[%clk 0:03:00.4]} 12... exf4
{[%clk 0:02:56]} 13. Bxf4 {[%clk 0:03:01.3]} 13... Ne6 {[%clk 0:02:56.5]} 14.
Be3 {[%clk 0:03:01.6]} 14... Nd4 {[%clk 0:02:55.7]} 15. Nf3 {[%clk 0:03:01.2]}
15... Be6 {[%clk 0:02:54.9]} 16. Rab1 {[%clk 0:02:59.5]} 16... a5 {[%clk
0:02:39.8]} 17. Ne2 {[%clk 0:02:59.1]} 17... Bxa2 {[%clk 0:02:37.5]} 18. Ra1
{[%clk 0:02:56.8]} 18... Nxe2+ {[%clk 0:02:31.2]} 19. Qxe2 {[%clk 0:02:56.6]}
19... Be6 {[%clk 0:02:31.4]} 20. Kh1 {[%clk 0:02:50.8]} 20... Bxb2 {[%clk
0:02:28.9]} 21. Rab1 {[%clk 0:02:50.5]} 21... Bg7 {[%clk 0:02:27.5]} 22. e5
{[%clk 0:02:49]} 22... O-O {[%clk 0:02:21.4]} 23. Qd2 {[%clk 0:02:48]} 23... a4
{[%clk 0:02:19.9]} 24. Bxh6 {[%clk 0:02:46.6]} 24... a3 {[%clk 0:02:19.6]} 25.
Bxg7 {[%clk 0:02:46.3]} 25... Kxg7 {[%clk 0:02:19.5]} 26. Ng5 {[%clk 0:02:43.9]}
26... Bd5 {[%clk 0:02:16]} 27. Qc3 {[%clk 0:02:39]} 27... a2 {[%clk 0:02:07.3]}
28. e6+ {[%clk 0:02:37.2]} 28... f6 {[%clk 0:02:06.1]} 29. Rbe1 {[%clk 0:02:35]}
29... Qe7 {[%clk 0:01:58]} 30. Qb2 {[%clk 0:02:23.4]} 30... b5 {[%clk
0:01:55.1]} 31. Rf2 {[%clk 0:02:20.8]} 31... Kg8 {[%clk 0:01:51]} 32. Ne4 {[%clk
0:02:18.9]} 32... Qxe6 {[%clk 0:01:38.2]} 33. Kh2 {[%clk 0:02:04]} 33... Bxe4
{[%clk 0:01:34]} 34. Rxe4 {[%clk 0:02:03.5]} 34... Qxe4 {[%clk 0:01:32.8]} 35.
dxe4 {[%clk 0:02:02.2]} 35... a1=Q {[%clk 0:01:31.9]} 0-1